[Event "XXIV ProAm Copa Clarin 2017"]
[Site "Villa Martelli"]
[Date "2017.10.03"]
[Round "4"]
[White "Godoy, Luciano"]
[Black "Llanos, Guillermo"]
[Result "1/2-1/2"]
[ECO "B01"]
[WhiteElo "2105"]
[BlackElo "2305"]
[Annotator "ChessBase"]
[PlyCount "89"]
[EventDate "2017.??.??"]
[EventType "swiss"]
[EventCountry "ARG"]
[SourceTitle "playchess.com"]
[Source "ChessBase"]
[SourceQuality "1"]
[TimeControl "5400+30"]

1. e4 {[%emt 0:00:00]} d5 {[%emt 0:00:55]} 2. exd5 {[%emt 0:00:06]} Qxd5 {[%emt 0:00:08]} 3. Nc3 {[%emt 0:00:14]} Qd8 {[%emt 0:00:06]} 4. d4 {[%emt 0:00:38]} Nf6 {[%emt 0:00:06]} 5. Nf3 {[%emt 0:00:45]} Bg4 {[%emt 0:00:09]} 6. h3 {[%emt 0:01:19]} Bxf3 {[%emt 0:00:04]} 7. Qxf3 {[%emt 0:00:08]} c6 {[%emt 0:00:03]} 8. Be3 {[%emt 0:00:16]} e6 {[%emt 0:00:06]} 9. Bd3 {[%emt 0:03:43]} Bb4 {[%emt 0:00:05]} 10. O-O {[%emt 0:01:53]} O-O {[%emt 0:00:25]} 11. Ne4 {[%emt 0:06:15]} Nbd7 {[%emt 0:01:32]} 12. Rad1 {[%emt 0:08:53]} Nxe4 {[%emt 0:01:01]} 13. Qxe4 {[%emt 0:00:17]} Nf6 {[%emt 0:00:04]} 14. Qh4 {[%emt 0:00:37]} Be7 {[%emt 0:01:50]} 15. Rfe1 {[%emt 0:06:12]} Re8 {[%emt 0:02:36]} 16. c4 {[%emt 0:07:56]} g6 {[%emt 0:01:46]} 17. Qg3 {[%emt 0:08:03]} a5 {[%emt 0:04:28]} 18. Qf3 {[%emt 0:05:10]} a4 {[%emt 0:01:01]} 19. h4 {[%emt 0:02:51]} h5 {[%emt 0:31:52]} 20. Bg5 {[%emt 0:08:18]} Nd7 {[%emt 0:21:41]} 21. d5 {[%emt 0:07:50]} exd5 {[%emt 0:03:17]} 22. Rxe7 {[%emt 0:06:33]} Rxe7 {[%emt 0:00:03]} 23. cxd5 {[%emt 0:00:16]} Ne5 {[%emt 0:08:28]} 24. Qf6 {[%emt 0:10:37]} Re8 {[%emt 0:00:05]} 25. Qxd8 {[%emt 0:00:15]} Raxd8 {[%emt 0:00:05]} 26. Bxd8 {[%emt 0:00:15]} Rxd8 {[%emt 0:00:03]} 27. dxc6 {[%emt 0:00:34]} bxc6 {[%emt 0:01:26]} 28. Bc2 {[%emt 0:00:12]} Rb8 {[%emt 0:00:04]} 29. Bxa4 {[%emt 0:01:37]} Rxb2 {[%emt 0:00:06]} 30. Bb3 {[%emt 0:00:45]} Kf8 {[%emt 0:05:28]} 31. Rc1 {[%emt 0:08:09]} Ke7 {[%emt 0:00:09]} 32. Rc2 {[%emt 0:02:49]} Rb1+ {[%emt 0:00:28]} 33. Kh2 {[%emt 0:00:06]} Kd6 {[%emt 0:00:47]} 34. Kg3 {[%emt 0:00:40]} Re1 {[%emt 0:02:30]} 35. Rd2+ {[%emt 0:02:06]} Kc7 {[%emt 0:00:28]} 36. Rc2 {[%emt 0:01:01]} f6 {[%emt 0:00:30]} 37. Rc3 {[%emt 0:00:17]} Kd6 {[%emt 0:01:48]} 38. f4 {[%emt 0:00:39]} Nd7 {[%emt 0:00:56]} 39. Bf7 {[%emt 0:00:17]} Re7 40. Bxg6 {[%emt 0:00:38]} Rg7 {[%emt 0:08:29]} 41. f5 {[%emt 0:00:21]} Ne5 {[%emt 0:00:04]} 42. Kf4 {[%emt 0:00:11]} Nxg6+ {[%emt 0:00:07]} 43. fxg6 {[%emt 0:00:26]} Rxg6 {[%emt 0:00:01]} 44. g3 {[%emt 0:00:14]} Rg4+ {[%emt 0:00:53]} 45. Kf5 {[%emt 0:00:17]} 1/2-1/2

[Event "XXIV ProAm Copa Clarin 2017"]
[Site "Villa Martelli"]
[Date "2017.10.03"]
[Round "4"]
[White "Montes De Oca, Juan"]
[Black "Barrionuevo, Pablo"]
[Result "0-1"]
[ECO "C01"]
[WhiteElo "2042"]
[BlackElo "2256"]
[Annotator "ChessBase"]
[PlyCount "78"]
[EventDate "2017.??.??"]
[EventType "swiss"]
[EventCountry "ARG"]
[SourceTitle "playchess.com"]
[Source "ChessBase"]
[SourceQuality "1"]
[TimeControl "5400+30"]

1. e4 {[%emt 0:00:25]} e6 {[%emt 0:01:22]} 2. d4 {[%emt 0:01:27]} d5 {[%emt 0:00:20]} 3. exd5 {[%emt 0:03:22]} exd5 {[%emt 0:00:23]} 4. Bd3 {[%emt 0:00:12]} Nc6 {[%emt 0:00:18]} 5. Nf3 {[%emt 0:01:57]} Bd6 {[%emt 0:00:32]} 6. Bg5 {[%emt 0:00:57]} Nge7 {[%emt 0:03:02]} 7. c3 {[%emt 0:02:06]} Bg4 {[%emt 0:01:23]} 8. Nbd2 {[%emt 0:01:43]} Qd7 {[%emt 0:00:44]} 9. Qc2 {[%emt 0:03:33]} Qe6+ {[%emt 0:14:33]} 10. Kf1 {[%emt 0:00:55]} f6 {[%emt 0:00:16]} 11. Re1 {[%emt 0:02:30]} Qd7 {[%emt 0:04:30]} 12. Bh4 {[%emt 0:00:18]} O-O-O {[%emt 0:01:26]} 13. Bg3 {[%emt 0:04:27]} Bxg3 {[%emt 0:11:21]} 14. fxg3 {[%emt 0:03:01]} h5 {[%emt 0:12:02]} 15. h3 {[%emt 0:07:03]} Bf5 {[%emt 0:05:36]} 16. Nb3 {[%emt 0:02:50]} b6 {[%emt 0:03:48]} 17. Kf2 {[%emt 0:06:31]} g5 {[%emt 0:05:18]} 18. Nc1 {[%emt 0:05:15]} Bxd3 {[%emt 0:03:56]} 19. Qxd3 {[%emt 0:01:34]} Nf5 {[%emt 0:00:46]} 20. Qe2 {[%emt 0:09:12]} Nd6 {[%emt 0:03:51]} 21. Nd2 {[%emt 0:04:34]} f5 {[%emt 0:05:23]} 22. Rhf1 {[%emt 0:03:01]} h4 {[%emt 0:04:16]} 23. gxh4 {[%emt 0:01:37]} Rxh4 {[%emt 0:01:05]} 24. Qa6+ {[%emt 0:12:41]} Kb8 {[%emt 0:00:22]} 25. Nf3 {[%emt 0:02:02]} Ne4+ {[%emt 0:03:09]} 26. Kg1 {[%emt 0:02:10]} Rh6 {[%emt 0:00:26]} 27. Nd3 {[%emt 0:00:20]} g4 {[%emt 0:01:22]} 28. Nfe5 {[%emt 0:00:09]} Nxe5 {[%emt 0:00:11]} 29. Nxe5 {[%emt 0:00:03]} Qh7 {[%emt 0:00:47]} 30. h4 {[%emt 0:00:56]} Re6 {[%emt 0:01:16]} 31. Rxe4 {[%emt 0:00:53]} dxe4 {[%emt 0:01:23]} 32. g3 {[%emt 0:00:26]} Rxe5 {[%emt 0:06:21]} 33. dxe5 {[%emt 0:00:14]} Rd3 {[%emt 0:00:11]} 34. Kg2 {[%emt 0:03:07]} Qd7 {[%emt 0:00:05]} 35. Qc4 {[%emt 0:04:07]} Rd2+ {[%emt 0:00:55]} 36. Kg1 {[%emt 0:00:20]} e3 {[%emt 0:01:57]} 37. Re1 {[%emt 0:02:44]} Rxb2 {[%emt 0:01:39]} 38. e6 {[%emt 0:03:23]} Qd6 {[%emt 0:00:46]} 39. Rxe3 {[%emt 0:01:55]} Qd2 {[%emt 0:00:05]} 0-1

[Event "XXIV ProAm Copa Clarin 2017"]
[Site "Villa Martelli"]
[Date "2017.10.04"]
[Round "5"]
[White "Pierrot, Facundo"]
[Black "Zamani, Andres"]
[Result "1-0"]
[ECO "B76"]
[WhiteElo "2405"]
[BlackElo "2120"]
[Annotator "NA"]
[PlyCount "91"]
[EventDate "2017.??.??"]
[EventType "swiss"]
[EventCountry "ARG"]
[SourceTitle "playchess.com"]
[Source "ChessBase"]
[SourceQuality "1"]
[TimeControl "5400+30"]

1. e4 {[%emt 0:00:00]} c5 {[%emt 0:00:12]} 2. Nf3 {[%emt 0:00:01]} d6 {[%emt 0:00:06]} 3. d4 {[%emt 0:00:21]} cxd4 {[%emt 0:00:10]} 4. Nxd4 {[%emt 0:00:06]} Nf6 {[%emt 0:00:07]} 5. Nc3 {[%emt 0:00:38]} g6 {[%emt 0:00:06]} 6. Be3 {[%emt 0:00:21]} Bg7 {[%emt 0:00:07]} 7. f3 {[%emt 0:00:05]} O-O {[%emt 0:00:12]} 8. Qd2 {[%emt 0:00:13]} Nc6 {[%emt 0:00:07]} 9. O-O-O {[%emt 0:00:27]} d5 {[%emt 0:00:50]} 10. exd5 {[%emt 0:00:33]} Nxd5 {[%emt 0:00:09]} 11. Nxc6 {[%emt 0:00:04]} bxc6 {[%emt 0:00:08]} 12. Bd4 {[%emt 0:00:04]} Bxd4 {[%emt 0:00:38]} 13. Qxd4 {[%emt 0:00:07]} Qb6 {[%emt 0:00:11]} 14. Na4 {[%emt 0:07:14]} Qc7 {[%emt 0:00:11]} 15. Bc4 {[%emt 0:01:38]} Rd8 {[%emt 0:06:03]} 16. Kb1 {[%emt 0:09:21]} Bf5 {[%emt 0:01:41]} 17. Qc5 {[%emt 0:01:39]} Rac8 {[%emt 0:24:18]} 18. Bb3 {[%emt 0:11:28]} Rd6 {[%emt 0:03:38]} 19. g4 {[%emt 0:03:18]} Be6 {[%emt 0:01:00]} 20. h4 {[%emt 0:00:11]} Rcd8 {[%emt 0:01:44]} 21. Rde1 {[%emt 0:02:18]} Nf4 {[%emt 0:03:06]} 22. h5 {[%emt 0:01:26]} Qd7 {[%emt 0:06:13]} 23. Nc3 {[%emt 0:00:55]} Bxb3 {[%emt 0:03:20]} 24. axb3 {[%emt 0:00:20]} Ne6 {[%emt 0:11:54]} 25. Qe3 {[%emt 0:02:19]} g5 {[%emt 0:02:12]} 26. h6 {[%emt 0:00:11]} Rd4 {[%emt 0:04:41]} 27. Ne2 {[%emt 0:20:50]} Rd2 {[%emt 0:06:28]} 28. Qc3 {[%emt 0:01:03]} f6 {[%emt 0:10:17]} 29. Qc4 {[%emt 0:04:27]} Kf7 {[%emt 0:02:03]} 30. Qe4 {[%emt 0:03:18]} Nf8 {[%emt 0:01:02]} 31. f4 {[%emt 0:00:26]} Qxg4 {[%emt 0:03:15]} 32. Nd4 {[%emt 0:04:24]} e5 {[%emt 0:03:45]} 33. Nxc6 {[%emt 0:01:21]} R8d6 {[%emt 0:02:46]} 34. Rhg1 {[%emt 0:13:25]} Rd1+ {[%emt 0:00:29]} 35. Ka2 {[%emt 0:00:14]} Rxe1 {[%emt 0:00:54]} 36. Qxe1 {[%emt 0:01:19]} Qxf4 {[%emt 0:00:54]} 37. Rf1 {[%emt 0:00:13]} Qd2 {[%emt 0:02:08]} 38. Nxe5+ {[%emt 0:01:42]} Kg8 {[%emt 0:00:03]} 39. Qxd2 {[%emt 0:03:13]} Rxd2 {[%emt 0:00:04]} 40. Rxf6 {[%emt 0:00:17]} Rxc2 {[%emt 0:00:56]} 41. Rf7 {[%emt 0:00:25]} Ng6 {[%emt 0:01:26]} 42. Rg7+ {[%emt 0:00:14]} Kf8 {[%emt 0:00:15]} 43. Nd7+ {[%emt 0:01:08]} Ke8 {[%emt 0:00:05]} 44. Nf6+ {[%emt 0:00:03]} Kd8 {[%emt 0:00:40]} 45. Nxh7 {[%emt 0:00:08]} Nf4 {[%emt 0:00:58]} 46. Nxg5 {[%emt 0:00:07]} 1-0

[Event "XXIV ProAm Copa Clarin 2017"]
[Site "Villa Martelli"]
[Date "2017.10.05"]
[Round "6"]
[White "Sanhueza, Cristian"]
[Black "Anino, Sergio"]
[Result "1-0"]
[ECO "D31"]
[WhiteElo "2263"]
[BlackElo "2132"]
[Annotator "ChessBase"]
[PlyCount "103"]
[EventDate "2017.??.??"]
[EventType "swiss"]
[EventCountry "ARG"]
[SourceTitle "playchess.com"]
[Source "ChessBase"]
[SourceQuality "1"]
[TimeControl "5400+30"]

1. d4 {[%emt 0:00:01]} d5 {[%emt 0:00:17]} 2. c4 {[%emt 0:00:20]} e6 {[%emt 0:00:40]} 3. Nc3 {[%emt 0:00:22]} c6 {[%emt 0:00:06]} 4. e4 {[%emt 0:03:46]} dxe4 {[%emt 0:00:19]} 5. Nxe4 {[%emt 0:00:06]} Bb4+ {[%emt 0:00:30]} 6. Bd2 {[%emt 0:00:18]} Qxd4 {[%emt 0:00:20]} 7. Bxb4 {[%emt 0:00:06]} Qxe4+ {[%emt 0:00:06]} 8. Ne2 {[%emt 0:00:10]} Na6 {[%emt 0:05:10]} 9. Bf8 {[%emt 0:00:10]} Ne7 {[%emt 0:03:34]} 10. Bxg7 {[%emt 0:01:52]} Rg8 {[%emt 0:00:05]} 11. Bc3 {[%emt 0:00:14]} Bd7 {[%emt 0:11:54]} 12. Qb1 {[%emt 0:08:34]} Nc5 {[%emt 0:01:48]} 13. Qxe4 {[%emt 0:18:32]} Nxe4 {[%emt 0:00:05]} 14. g3 {[%emt 0:01:11]} c5 {[%emt 0:05:52]} 15. Bg2 {[%emt 0:01:24]} Nxc3 {[%emt 0:00:54]} 16. Nxc3 {[%emt 0:00:17]} O-O-O {[%emt 0:12:27]} 17. O-O-O {[%emt 0:07:53]} Bc6 {[%emt 0:05:18]} 18. Bxc6 {[%emt 0:13:11]} Nxc6 {[%emt 0:00:06]} 19. Ne4 {[%emt 0:02:38]} Ne5 {[%emt 0:03:39]} 20. Nxc5 {[%emt 0:08:19]} Nxc4 {[%emt 0:01:20]} 21. Ne4 {[%emt 0:00:46]} Ne5 {[%emt 0:05:28]} 22. f4 {[%emt 0:12:20]} Nd3+ {[%emt 0:05:44]} 23. Kc2 {[%emt 0:00:22]} Nb4+ {[%emt 0:00:37]} 24. Kb3 {[%emt 0:00:18]} Nd5 {[%emt 0:00:51]} 25. Ng5 {[%emt 0:04:10]} Rd7 {[%emt 0:02:36]} 26. Rd4 {[%emt 0:05:48]} h6 {[%emt 0:02:57]} 27. Ne4 {[%emt 0:00:48]} Rgd8 {[%emt 0:08:28]} 28. Rc1+ {[%emt 0:00:48]} Rc7 {[%emt 0:01:16]} 29. Rcd1 {[%emt 0:02:59]} Rcd7 {[%emt 0:01:14]} 30. R1d2 {[%emt 0:03:46]} Kb8 {[%emt 0:08:08]} 31. Nc3 {[%emt 0:00:31]} Nf6 {[%emt 0:03:24]} 32. Rxd7 {[%emt 0:00:14]} Rxd7 {[%emt 0:01:11]} 33. Rxd7 {[%emt 0:00:02]} Nxd7 {[%emt 0:00:06]} 34. Kc4 {[%emt 0:00:15]} a6 {[%emt 0:01:20]} 35. Kd4 {[%emt 0:00:57]} Kc7 {[%emt 0:00:30]} 36. Ne4 {[%emt 0:00:02]} Kc6 {[%emt 0:00:47]} 37. g4 {[%emt 0:00:23]} b6 {[%emt 0:01:58]} 38. h4 {[%emt 0:00:30]} f6 {[%emt 0:01:11]} 39. Ng3 {[%emt 0:02:53]} Kd6 {[%emt 0:00:12]} 40. b4 {[%emt 0:00:13]} Kc6 {[%emt 0:04:10]} 41. g5 {[%emt 0:00:57]} fxg5 {[%emt 0:00:18]} 42. fxg5 {[%emt 0:00:11]} hxg5 {[%emt 0:00:06]} 43. hxg5 {[%emt 0:00:02]} Kd6 {[%emt 0:00:33]} 44. a4 {[%emt 0:01:20]} e5+ {[%emt 0:00:45]} 45. Ke4 {[%emt 0:00:49]} Ke6 {[%emt 0:00:06]} 46. Kd3 {[%emt 0:01:25]} Kd5 {[%emt 0:01:02]} 47. g6 {[%emt 0:00:23]} e4+ {[%emt 0:01:30]} 48. Ke3 {[%emt 0:00:30]} Ne5 {[%emt 0:01:35]} 49. g7 {[%emt 0:00:19]} Ng4+ {[%emt 0:00:04]} 50. Kf4 {[%emt 0:00:26]} Nf6 {[%emt 0:00:06]} 51. Kf5 {[%emt 0:00:10]} Ng8 {[%emt 0:01:26]} 52. Nxe4 {[%emt 0:00:32]} 1-0

[Event "XXIV ProAm Copa Clarin 2017"]
[Site "Villa Martelli"]
[Date "2017.10.06"]
[Round "7"]
[White "Llanos, Guillermo"]
[Black "De Dovitiis, Alejo"]
[Result "0-1"]
[ECO "A05"]
[WhiteElo "2305"]
[BlackElo "2338"]
[Annotator "ChessBase"]
[PlyCount "90"]
[EventDate "2017.??.??"]
[EventType "swiss"]
[EventCountry "ARG"]
[SourceTitle "playchess.com"]
[Source "ChessBase"]
[SourceQuality "1"]
[TimeControl "5400+30"]

1. Nf3 {[%emt 0:00:00]} Nf6 {[%emt 0:02:07]} 2. e3 {[%emt 0:00:00]} g6 {[%emt 0:00:53]} 3. b3 {[%emt 0:02:06]} Bg7 {[%emt 0:00:26]} 4. Bb2 {[%emt 0:00:05]} O-O {[%emt 0:00:42]} 5. Be2 {[%emt 0:00:04]} c5 {[%emt 0:00:40]} 6. c4 {[%emt 0:00:25]} b6 {[%emt 0:05:57]} 7. O-O {[%emt 0:00:37]} Bb7 {[%emt 0:00:05]} 8. d4 {[%emt 0:03:48]} cxd4 {[%emt 0:02:16]} 9. Nxd4 {[%emt 0:02:00]} Na6 {[%emt 0:04:24]} 10. Nc3 {[%emt 0:00:32]} Nc5 {[%emt 0:01:08]} 11. f3 {[%emt 0:07:31]} e5 {[%emt 0:05:02]} 12. Ndb5 {[%emt 0:00:54]} d5 {[%emt 0:01:45]} 13. Nxd5 {[%emt 0:00:55]} Bxd5 {[%emt 0:01:56]} 14. cxd5 {[%emt 0:00:06]} Nxd5 {[%emt 0:00:07]} 15. e4 {[%emt 0:20:46]} Nf4 {[%emt 0:02:07]} 16. Bc4 {[%emt 0:01:35]} Qg5 {[%emt 0:01:50]} 17. Qc2 {[%emt 0:00:39]} a6 {[%emt 0:03:17]} 18. Nc3 {[%emt 0:09:00]} b5 {[%emt 0:01:28]} 19. b4 {[%emt 0:04:23]} bxc4 {[%emt 0:16:19]} 20. bxc5 {[%emt 0:00:06]} Rfd8 {[%emt 0:00:08]} 21. Bc1 {[%emt 0:03:20]} Qe7 {[%emt 0:04:54]} 22. Be3 {[%emt 0:04:13]} Rd3 {[%emt 0:01:12]} 23. Rfe1 {[%emt 0:00:04]} Rxe3 {[%emt 0:10:31]} 24. Rxe3 {[%emt 0:00:05]} Qxc5 {[%emt 0:00:03]} 25. Qf2 Bh6 {[%emt 0:08:11]} 26. Ree1 {[%emt 0:17:15]} Qa5 {[%emt 0:04:31]} 27. Qc2 {[%emt 0:01:36]} Rd8 {[%emt 0:01:27]} 28. Nd5 {[%emt 0:02:08]} Qc5+ {[%emt 0:09:24]} 29. Kh1 {[%emt 0:00:49]} Nxd5 {[%emt 0:00:44]} 30. exd5 {[%emt 0:00:03]} Rxd5 {[%emt 0:00:40]} 31. Rad1 {[%emt 0:06:00]} Rd4 {[%emt 0:00:28]} 32. g3 {[%emt 0:02:53]} Qd5 {[%emt 0:01:03]} 33. Kg2 {[%emt 0:00:05]} c3 {[%emt 0:04:19]} 34. Rxd4 {[%emt 0:02:46]} exd4 {[%emt 0:00:09]} 35. a4 {[%emt 0:04:12]} Bd2 {[%emt 0:01:24]} 36. Re8+ {[%emt 0:00:06]} Kg7 {[%emt 0:00:04]} 37. Qd3 {[%emt 0:00:16]} Qc5 {[%emt 0:01:00]} 38. Qc2 {[%emt 0:02:11]} d3 {[%emt 0:02:28]} 39. Qxd3 {[%emt 0:00:03]} c2 {[%emt 0:00:03]} 40. Qd8 {[%emt 0:03:13]} c1=Q {[%emt 0:00:12]} 41. Rg8+ {[%emt 0:01:33]} Kh6 {[%emt 0:00:07]} 42. Qh4+ {[%emt 0:00:16]} Qh5 {[%emt 0:00:06]} 43. Qe7 {[%emt 0:00:16]} Bb4 {[%emt 0:01:49]} 44. Qxb4 {[%emt 0:00:31]} Qc2+ {[%emt 0:00:04]} 45. Kg1 {[%emt 0:00:16]} Qhxh2+ 0-1